Body,Body Name,Date,TransNo,Amount � (Excl VAT),Supplier name,Description,Expense Area,Expense Type,Expense Code,
http://opendatacommunities.org/id/london-borough-council/sutton,London Borough of Sutton,15/05/2023,10012360,28.50, SP CHILD AND FAMILY TR,DEVELOPMENT AND WELLBEING GUIDE FOR CHILDREN,Health and Wellbeing,Books,A43050,
http://opendatacommunities.org/id/london-borough-council/sutton,London Borough of Sutton,03/05/2023,10012360,100.99, ONE4ALL,THANK YOU VOUCHER,Health and Wellbeing,Miscellaneous Expenses,A49000,
http://opendatacommunities.org/id/london-borough-council/sutton,London Borough of Sutton,03/05/2023,10012360,200.99, ONE4ALL,2X THANK YOU VOUCHERS,Health and Wellbeing,Miscellaneous Expenses,A49000,
http://opendatacommunities.org/id/london-borough-council/sutton,London Borough of Sutton,23/05/2023,10012360,10.25, AMZNMKTPLACE,TOYS AND EQUIPMENT,Health and Wellbeing,Equipment And Materials Purchase,A40000,
http://opendatacommunities.org/id/london-borough-council/sutton,London Borough of Sutton,23/05/2023,10012360,7.50, POUNDLAND LTD,TOYS AND EQUIPMENT,Health and Wellbeing,Equipment And Materials Purchase,A40000,
http://opendatacommunities.org/id/london-borough-council/sutton,London Borough of Sutton,22/05/2023,10012360,5.79, AMAZON.CO.UK CO26X6LS5,TOYS AND EQUIPMENT,Health and Wellbeing,Equipment And Materials Purchase,A40000,
http://opendatacommunities.org/id/london-borough-council/sutton,London Borough of Sutton,22/05/2023,10012360,8.32, TWINKL,TWINKL SUBSCRIPTION,Health and Wellbeing,Equipment And Materials Purchase,A40000,
http://opendatacommunities.org/id/london-borough-council/sutton,London Borough of Sutton,21/05/2023,10012360,53.57, AMAZON.CO.UK ME67W5UM5,TOYS AND EQUIPMENT,Health and Wellbeing,Equipment And Materials Purchase,A40000,
http://opendatacommunities.org/id/london-borough-council/sutton,London Borough of Sutton,19/05/2023,10012360,21.66, EBAY O 22-10070-23976,TOYS AND EQUIPMENT,Health and Wellbeing,Equipment And Materials Purchase,A40000,
http://opendatacommunities.org/id/london-borough-council/sutton,London Borough of Sutton,03/05/2023,10012360,-2.42, EBAY O 07-09971-21585,TOYS AND EQUIPMENT,Health and Wellbeing,Equipment And Materials Purchase,A40000,
http://opendatacommunities.org/id/london-borough-council/sutton,London Borough of Sutton,02/05/2023,10012360,10.00, AMAZON.CO.UK X43OR48C5,TOYS AND EQUIPMENT,Health and Wellbeing,Equipment And Materials Purchase,A40000,
http://opendatacommunities.org/id/london-borough-council/sutton,London Borough of Sutton,02/05/2023,10012360,21.65, TK MAXX,TOYS AND EQUIPMENT,Health and Wellbeing,Equipment And Materials Purchase,A40000,
http://opendatacommunities.org/id/london-borough-council/sutton,London Borough of Sutton,28/04/2023,10012360,96.15, SAINSBURYS.CO.UK,GROCERIES,Health and Wellbeing,Provisions,A41006,
http://opendatacommunities.org/id/london-borough-council/sutton,London Borough of Sutton,12/05/2023,10012360,72.72, SAINSBURYS.CO.UK,GROCERIES,Health and Wellbeing,Provisions,A41006,
http://opendatacommunities.org/id/london-borough-council/sutton,London Borough of Sutton,09/05/2023,10012360,52.92, TESCO STORES 5999,GROCERIES,Health and Wellbeing,Provisions,A41006,
http://opendatacommunities.org/id/london-borough-council/sutton,London Borough of Sutton,03/05/2023,10012360,29.28, ASDA SUPERSTORE,GROCERIES,Health and Wellbeing,Provisions,A41006,
http://opendatacommunities.org/id/london-borough-council/sutton,London Borough of Sutton,23/05/2023,10012360,20.53, ASDA STORES,GROCERIES,Health and Wellbeing,Provisions,A41006,
http://opendatacommunities.org/id/london-borough-council/sutton,London Borough of Sutton,21/05/2023,10012360,13.32, AMZN MKTP UK WW4YY22V5,LIBRARIES EXPENSE,Health and Wellbeing,Equipment And Materials Purchase,A40000,
http://opendatacommunities.org/id/london-borough-council/sutton,London Borough of Sutton,21/05/2023,10012360,40.00, AMZNMKTPLACE,LIBRARIES EXPENSE,Health and Wellbeing,Equipment And Materials Purchase,A40000,
http://opendatacommunities.org/id/london-borough-council/sutton,London Borough of Sutton,19/05/2023,10012360,38.95, DUNELM SOFTFURNISHINGS,LIBRARIES EXPENSE,Health and Wellbeing,Equipment And Materials Purchase,A40000,
http://opendatacommunities.org/id/london-borough-council/sutton,London Borough of Sutton,19/05/2023,10012360,14.99, AMZNMKTPLACE,LIBRARIES EXPENSE,Health and Wellbeing,Equipment And Materials Purchase,A40000,
http://opendatacommunities.org/id/london-borough-council/sutton,London Borough of Sutton,17/05/2023,10012360,23.80, EDEN ECOMMERCE,LIBRARIES EXPENSE,Health and Wellbeing,Equipment And Materials Purchase,A40000,
http://opendatacommunities.org/id/london-borough-council/sutton,London Borough of Sutton,15/05/2023,10012360,9.68, AMZNBUSINESS JW9XL2IG5,LIBRARIES EXPENSE,Health and Wellbeing,Equipment And Materials Purchase,A40000,
http://opendatacommunities.org/id/london-borough-council/sutton,London Borough of Sutton,15/05/2023,10012360,124.16, AMZNMKTPLACE AMAZON.CO,LIBRARIES EXPENSE,Health and Wellbeing,Equipment And Materials Purchase,A40000,
http://opendatacommunities.org/id/london-borough-council/sutton,London Borough of Sutton,15/05/2023,10012360,71.66, AMZNMKTPLACE AMAZON.CO,LIBRARIES EXPENSE,Health and Wellbeing,Equipment And Materials Purchase,A40000,
http://opendatacommunities.org/id/london-borough-council/sutton,London Borough of Sutton,13/05/2023,10012360,49.72, AMZNMKTPLACE,LIBRARIES EXPENSE,Health and Wellbeing,Equipment And Materials Purchase,A40000,
http://opendatacommunities.org/id/london-borough-council/sutton,London Borough of Sutton,11/05/2023,10012360,74.99, TRAINLINE,LIBRARIES EXPENSE,Health and Wellbeing,Equipment And Materials Purchase,A40000,
http://opendatacommunities.org/id/london-borough-council/sutton,London Borough of Sutton,22/05/2023,10012360,6.66, AMZNMKTPLACE AMAZON.CO,SPLIT - 10 PACK RETRO KRAFT ENVELOPES BUCKLE ENVELOPE WITH RIBBON GIFT CARD PREMIUM ENVELOPES FOR HANDMADE INVITATIONS LETTERS WEDDING BIRTHDAY OR FESTIVAL CA (100%),Health and Wellbeing,Provider Contract Payments,A44290,
http://opendatacommunities.org/id/london-borough-council/sutton,London Borough of Sutton,22/05/2023,10012360,7.30, AMZN MKTP UK NW7V879G5,"SPLIT - CATHEDRAL LAMINATING POUCHES 150 MICRON, 100 PACK, A4 (100%)",Health and Wellbeing,Provider Contract Payments,A44290,
http://opendatacommunities.org/id/london-borough-council/sutton,London Borough of Sutton,22/05/2023,10012360,4.66, AMZNMKTPLACE AMAZON.CO,"SPLIT - JIJACRAFT 2MM BUTCHERS STRING, 328FT STRONG WHITE STRING, NATURAL FOOD GRADE COOKING STRING, COTTON STRING FOR KITCHEN ROTISSERIE CHICKEN, TYING MEAT, (100%)",Health and Wellbeing,Provider Contract Payments,A44290,
http://opendatacommunities.org/id/london-borough-council/sutton,London Borough of Sutton,22/05/2023,10012360,75.00, AMZNMKTPLACE AMAZON.CO,SPLIT - AMAZON.CO.UK GIFT CARD IN A BLUE BOW TIE BOX (100%),Health and Wellbeing,Provider Contract Payments,A44290,
http://opendatacommunities.org/id/london-borough-council/sutton,London Borough of Sutton,16/05/2023,10012360,45.01, AMZNMKTPLACE,ITEMS FOR OUTREACH EVENTS,Health and Wellbeing,Other Supplies & Services,A44291,
http://opendatacommunities.org/id/london-borough-council/sutton,London Borough of Sutton,09/05/2023,10012360,29.75, AMZNMKTPLACE AMAZON.CO,BUNTING FOR BREASTFEEDING AWARENESS WEEK EVENTS AND CLICKERS FOR OUTREACH ATTENDANCE NUMBERS,Health and Wellbeing,Other Supplies & Services,A44291,
http://opendatacommunities.org/id/london-borough-council/sutton,London Borough of Sutton,17/05/2023,10012360,106.72, AMZNMKTPLACE,Family Hubs Purchases,Health and Wellbeing,Stock Materials,A40070,
http://opendatacommunities.org/id/london-borough-council/sutton,London Borough of Sutton,17/05/2023,10012360,7.58, AMZNMKTPLACE,Family Hubs Purchases,Health and Wellbeing,Stock Materials,A40070,
http://opendatacommunities.org/id/london-borough-council/sutton,London Borough of Sutton,17/05/2023,10012360,8.03, AMZNMKTPLACE AMAZON.CO,Family Hubs Purchases,Health and Wellbeing,Stock Materials,A40070,
http://opendatacommunities.org/id/london-borough-council/sutton,London Borough of Sutton,16/05/2023,10012360,11.64, AMZNMKTPLACE AMAZON.CO,Family Hubs Purchases,Health and Wellbeing,Stock Materials,A40070,
http://opendatacommunities.org/id/london-borough-council/sutton,London Borough of Sutton,16/05/2023,10012360,19.78, AMZNMKTPLACE,Family Hubs Purchases,Health and Wellbeing,Stock Materials,A40070,
http://opendatacommunities.org/id/london-borough-council/sutton,London Borough of Sutton,16/05/2023,10012360,29.14, AMZNMKTPLACE,Family Hubs Purchases,Health and Wellbeing,Stock Materials,A40070,
http://opendatacommunities.org/id/london-borough-council/sutton,London Borough of Sutton,16/05/2023,10012360,19.32, AMZNMKTPLACE,Family Hubs Purchases,Health and Wellbeing,Stock Materials,A40070,
http://opendatacommunities.org/id/london-borough-council/sutton,London Borough of Sutton,16/05/2023,10012360,29.14, AMZNMKTPLACE,Family Hubs Purchases,Health and Wellbeing,Stock Materials,A40070,
http://opendatacommunities.org/id/london-borough-council/sutton,London Borough of Sutton,16/05/2023,10012360,20.79, AMZNMKTPLACE AMAZON.CO,Family Hubs Purchases,Health and Wellbeing,Stock Materials,A40070,
http://opendatacommunities.org/id/london-borough-council/sutton,London Borough of Sutton,27/04/2023,10012360,50.00, TESCO GIFT CARD,GIFT CARD FOR EARLY YEARS PRACTITIONER TO BUY THE SNACKS FOR CHILDREN'S CENTRE SESSIONS,Health and Wellbeing,Stock Materials,A40070,
http://opendatacommunities.org/id/london-borough-council/sutton,London Borough of Sutton,05/05/2023,10012360,40.00, WWW.ICO.ORG.UK,INFORMATION COMMISSIONER,Health and Wellbeing,Subscriptions,A47010,
http://opendatacommunities.org/id/london-borough-council/sutton,London Borough of Sutton,05/05/2023,10012360,24.60, THE STATIONERY OFFICE,NOTICE IN LONDON GAZETTE,Health and Wellbeing,Subscriptions,A47010,
http://opendatacommunities.org/id/london-borough-council/sutton,London Borough of Sutton,03/05/2023,10012360,8.32, SPOTIFY P22D2F2D64,MUSIC FOR MARRIAGES,Health and Wellbeing,Subscriptions,A47010,
http://opendatacommunities.org/id/london-borough-council/sutton,London Borough of Sutton,03/05/2023,10012360,5.82, ROBERT DYAS SUTTON,ANT PEST CONTROL,Health and Wellbeing,Miscellaneous Expenses,A49000,
http://opendatacommunities.org/id/london-borough-council/sutton,London Borough of Sutton,02/05/2023,10012360,18.72, WM MORRISONS STORE,REFRESHMENTS FOR CITIZENSHIP,Health and Wellbeing,Miscellaneous Expenses,A49000,
http://opendatacommunities.org/id/london-borough-council/sutton,London Borough of Sutton,26/04/2023,10012360,24.12, AMZNMKTPLACE AMAZON.CO,CORONATION PEN GIFTS FOR CITIZENS,Health and Wellbeing,Miscellaneous Expenses,A49000,
http://opendatacommunities.org/id/london-borough-council/sutton,London Borough of Sutton,11/05/2023,10012360,17.59, AMZNMKTPLACE,LAPTOP STAND REQUIRED FOR A BUSINESS SUPPORT OFFICER (100%),People's Services,Miscellaneous Expenses,A49000,
http://opendatacommunities.org/id/london-borough-council/sutton,London Borough of Sutton,17/05/2023,10012360,6.70, FOREIGN EXCHANGE,FOREIGN EXCHANGE,Resources,ICT Expenses,A45009,
http://opendatacommunities.org/id/london-borough-council/sutton,London Borough of Sutton,15/05/2023,10012360,243.70, PAYPAL  HARVEST,USER LICENCE,Resources,ICT Expenses,A45009,
http://opendatacommunities.org/id/london-borough-council/sutton,London Borough of Sutton,27/04/2023,10012360,10.49, WH SMITH SUTTON,RAFFLE TICKETS FOR THE MAYOR'S CHARITIES FUNDRAISING EVENTS,Resources,Equipment And Materials Purchase,A40000,
http://opendatacommunities.org/id/london-borough-council/sutton,London Borough of Sutton,10/05/2023,10012360,745.92, MAJESTIC WINE,WINE AND GLASS HIRE FOR ANNUAL MAYOR MAKING 22ND MAY 2023,Resources,Hospitality,A46020,
http://opendatacommunities.org/id/london-borough-council/sutton,London Borough of Sutton,21/05/2023,10012360,301.75, MAILCHIMP,RECHARGE TO SHP,Resources,Publicity,A44266,
http://opendatacommunities.org/id/london-borough-council/sutton,London Borough of Sutton,16/05/2023,10012360,111.16, LINKEDIN ADS 904473126,Subscription,Resources,Publicity,A44266,
http://opendatacommunities.org/id/london-borough-council/sutton,London Borough of Sutton,14/05/2023,10012360,523.43, MAILCHIMP,SUTTON MAILCHIMP SUBSCRIPTIONS,Resources,Publicity,A44266,
http://opendatacommunities.org/id/london-borough-council/sutton,London Borough of Sutton,13/05/2023,10012360,128.06, LINKEDIN ADS 036795634,Subscription,Resources,Publicity,A44266,
http://opendatacommunities.org/id/london-borough-council/sutton,London Borough of Sutton,26/04/2023,10012360,126.00, HONEYWOOD TEA ROOM,HONEYWOOD TEA ROOMS COMMITTEE MEETING,Resources,Publicity,A44266,
http://opendatacommunities.org/id/london-borough-council/sutton,London Borough of Sutton,17/05/2023,10012360,474.00, CURRYS ONLINE,CL&G,Resources,"Grants, Contributions & Donations",A47005,
http://opendatacommunities.org/id/london-borough-council/sutton,London Borough of Sutton,14/05/2023,10012360,20.00, OYSTER BUS AUTOLOAD,CL&G,Resources,"Grants, Contributions & Donations",A47005,
http://opendatacommunities.org/id/london-borough-council/sutton,London Borough of Sutton,07/05/2023,10012360,20.00, TFL OYSTER AUTO TOPUP,CL&G,Resources,"Grants, Contributions & Donations",A47005,
http://opendatacommunities.org/id/london-borough-council/sutton,London Borough of Sutton,28/04/2023,10012360,20.00, TFL OYSTER AUTO TOPUP,CL&G,Resources,"Grants, Contributions & Donations",A47005,
http://opendatacommunities.org/id/london-borough-council/sutton,London Borough of Sutton,04/05/2023,10012360,112.50, FIND A WILL,PROBATE CERTIFICATES X 75,Resources,Miscellaneous Expenses,A49000,
http://opendatacommunities.org/id/london-borough-council/sutton,London Borough of Sutton,19/05/2023,10012360,11.94, AMZNMKTPLACE AMAZON.CO,ITEMS REQUIRED FOR THE INNOVATION GATEWAY,Resources,Equipment And Materials Repairs & Maintenance,A40051,
http://opendatacommunities.org/id/london-borough-council/sutton,London Borough of Sutton,14/05/2023,10012360,183.87, AMZNMKTPLACE,ITEMS REQUIRED FOR THE INNOVATION GATEWAY,Resources,Equipment And Materials Repairs & Maintenance,A40051,
http://opendatacommunities.org/id/london-borough-council/sutton,London Borough of Sutton,15/05/2023,10012360,80.00, GREGGS,GREGGS GIFT VOUCHERS (INDUCTION STAFF),Resources,Staff Development And Training,A15022,
http://opendatacommunities.org/id/london-borough-council/sutton,London Borough of Sutton,05/05/2023,10012360,10.83, AMZNMKTPLACE,FIRE BRIGADE MASTER KEYS,Resources,Security Services,A44080,
http://opendatacommunities.org/id/london-borough-council/sutton,London Borough of Sutton,28/04/2023,10012360,24.17, TIMPSON LTD,2 CIVIC FRONT DOOR,Resources,Security Services,A44080,
http://opendatacommunities.org/id/london-borough-council/sutton,London Borough of Sutton,18/05/2023,10012360,50.00, LONDON STOCK EXCHANGE,LEI ANNUAL RENEWAL,Resources,Fees,A44040,
http://opendatacommunities.org/id/london-borough-council/sutton,London Borough of Sutton,15/05/2023,10012360,168.00, BISNOW,EVENT BOOKING: UK LIFE SCIENCES,Development Growth and Regeneration,Fees,A44040,
http://opendatacommunities.org/id/london-borough-council/sutton,London Borough of Sutton,24/05/2023,10012360,46.20, ORU SPACE,ROOM BOOKING FOR THE 8TH JUNE 2023,Environment Housing and Neighbourhoods,Miscellaneous Expenses,A49000,
http://opendatacommunities.org/id/london-borough-council/sutton,London Borough of Sutton,02/05/2023,10012360,146.93, TRAINLINE.COM,"TRAIN TICKETS TO PARKEX 2023 FOR ""REDACTED - PERSONAL DATA",Environment Housing and Neighbourhoods,Public Transport - Non Staff,A33013,
http://opendatacommunities.org/id/london-borough-council/sutton,London Borough of Sutton,22/05/2023,10012360,20.58, AMZNMKTPLACE AMAZON.CO,SPLIT - FB14 PADLOCK (100%),Environment Housing and Neighbourhoods,Equipment And Materials Repairs & Maintenance,A40051,
http://opendatacommunities.org/id/london-borough-council/sutton,London Borough of Sutton,10/05/2023,10012360,26.64, AMZNMKTPLACE,"SPLIT - NATBOK FOR MOTO G53 CASE, MILITARY-GRADE SHOCKPROOF MOTOROLA G53 CASE COVER, [CARBON FIBER TEXTURE] SOFT FLEXIBLE TPU SLIM ANTI-SCRATCH PROTECTIVE CAS (100%)",Environment Housing and Neighbourhoods,Mobile Phones,A45030,
http://opendatacommunities.org/id/london-borough-council/sutton,London Borough of Sutton,02/05/2023,10012360,27.00, OYSTER ONLINE,"PURCHASE OF OYSTER CARD FOR ""REDACTED - PERSONAL DATA",Environment Housing and Neighbourhoods,Non-Staff Travel Subsistence & Training,A46006,
http://opendatacommunities.org/id/london-borough-council/sutton,London Borough of Sutton,05/05/2023,10012360,64.12, BKG HOTEL AT BOOKING.C,EMERGENCY ACCOMMODATION FOR HOMELESS HOUSEHOLD,Environment Housing and Neighbourhoods,Bed & Breakfast,A56000,
http://opendatacommunities.org/id/london-borough-council/sutton,London Borough of Sutton,04/05/2023,10012360,420.77, TRAVELODGE,EMERGENCY ACCOMMODATION FOR HOMELESS HOUSEHOLD,Environment Housing and Neighbourhoods,Bed & Breakfast,A56000,
http://opendatacommunities.org/id/london-borough-council/sutton,London Borough of Sutton,03/05/2023,10012360,446.61, TRAVELODGE,EMERGENCY ACCOMMODATION FOR HOMELESS HOUSEHOLD,Environment Housing and Neighbourhoods,Bed & Breakfast,A56000,
http://opendatacommunities.org/id/london-borough-council/sutton,London Borough of Sutton,28/04/2023,10012360,458.29, TRAVELODGE,EMERGENCY ACCOMMODATION FOR HOMELESS HOUSEHOLDS,Environment Housing and Neighbourhoods,Bed & Breakfast,A56000,
http://opendatacommunities.org/id/london-borough-council/sutton,London Borough of Sutton,27/04/2023,10012360,479.11, TRAVELODGE,EMERGENCY ACCOMMODATION FOR HOMELESS HOUSEHOLDS,Environment Housing and Neighbourhoods,Bed & Breakfast,A56000,
http://opendatacommunities.org/id/london-borough-council/sutton,London Borough of Sutton,25/05/2023,10012360,657.92, BKG HOTEL AT BOOKING.C,EMERGENCY ACCOMMODATION FOR HOMELESS HOUSEHOLD,Environment Housing and Neighbourhoods,Bed & Breakfast,A56000,
http://opendatacommunities.org/id/london-borough-council/sutton,London Borough of Sutton,25/05/2023,10012360,500.77, TRAVELODGE,EMERGENCY ACCOMMODATION FOR HOMELESS HOUSEHOLD,Environment Housing and Neighbourhoods,Bed & Breakfast,A56000,
http://opendatacommunities.org/id/london-borough-council/sutton,London Borough of Sutton,24/05/2023,10012360,56.25, BKG HOTEL AT BOOKING.C,EMERGENCY ACCOMMODATION FOR HOMELESS HOUSEHOLD,Environment Housing and Neighbourhoods,Bed & Breakfast,A56000,
http://opendatacommunities.org/id/london-borough-council/sutton,London Borough of Sutton,24/05/2023,10012360,89.16, TRAVELODGE,EMERGENCY ACCOMMODATION FOR HOMELESS HOUSEHOLD,Environment Housing and Neighbourhoods,Bed & Breakfast,A56000,
http://opendatacommunities.org/id/london-borough-council/sutton,London Borough of Sutton,24/05/2023,10012360,495.79, TRAVELODGE,EMERGENCY ACCOMMODATION FOR HOMELESS HOUSEHOLD,Environment Housing and Neighbourhoods,Bed & Breakfast,A56000,
http://opendatacommunities.org/id/london-borough-council/sutton,London Borough of Sutton,17/05/2023,10012360,326.62, TRAVELODGE,EMERGENCY ACCOMMODATION FOR HOMELESS HOUSEHOLD,Environment Housing and Neighbourhoods,Bed & Breakfast,A56000,
http://opendatacommunities.org/id/london-borough-council/sutton,London Borough of Sutton,17/05/2023,10012360,91.66, TRAVELODGE,EMERGENCY ACCOMMODATION FOR HOMELESS HOUSEHOLD,Environment Housing and Neighbourhoods,Bed & Breakfast,A56000,
http://opendatacommunities.org/id/london-borough-council/sutton,London Borough of Sutton,12/05/2023,10012360,816.58, TRAVELODGE,EMERGENCY ACCOMMODATION FOR HOMELESS HOUSEHOLD,Environment Housing and Neighbourhoods,Bed & Breakfast,A56000,
http://opendatacommunities.org/id/london-borough-council/sutton,London Borough of Sutton,10/05/2023,10012360,134.98, TRAVELODGE,EMERGENCY ACCOMMODATION FOR HOMELESS HOUSEHOLD,Environment Housing and Neighbourhoods,Bed & Breakfast,A56000,
http://opendatacommunities.org/id/london-borough-council/sutton,London Borough of Sutton,10/05/2023,10012360,134.15, TRAVELODGE,EMERGENCY ACCOMMODATION FOR HOMELESS HOUSEHOLD,Environment Housing and Neighbourhoods,Bed & Breakfast,A56000,
http://opendatacommunities.org/id/london-borough-council/sutton,London Borough of Sutton,11/05/2023,10012360,40.90, SOUTHERN RAILWAY WEB,"TRAIN TICKET FOR ""REDACTED - PERSONAL DATA"" TO ATTEND IFSEC 2023",Environment Housing and Neighbourhoods,Public Transport - Non Staff,A33013,
http://opendatacommunities.org/id/london-borough-council/sutton,London Borough of Sutton,27/04/2023,10012360,150.00, AMAZON.CO.UK XX8729HN5,AMAZON GIFT VOUCHERS (100%),People's Services,Miscellaneous Expenses,A49000,
http://opendatacommunities.org/id/london-borough-council/sutton,London Borough of Sutton,10/05/2023,10012360,21.66, AMZNMKTPLACE,"SPLIT - NOHJER BICYCLE REPAIR TOOL KIT,BIKE CRANK PULLER TOOL, BIKE CRANK EXTRACTOR, BIKE BOTTOM BRACKET REMOVER HEX ALLEN WRENCH, 16MM 15MM SPANNER WRENCH, B (100%)",People's Services,Client Care/Assistance,A61011,
http://opendatacommunities.org/id/london-borough-council/sutton,London Borough of Sutton,10/05/2023,10012360,16.66, AMZNMKTPLACE,"SPLIT - BIKE FLOOR PUMP WITH GAUGE,GOBKO FLOOR BICYCLE PUMP WITH BOTH PRESTA AND SCHRADER BICYCLE PUMPS VALVES HIGH PRESSURE 170PSI MULTI-PURPOSE PORTABLE AIR (100%)",People's Services,Client Care/Assistance,A61011,
http://opendatacommunities.org/id/london-borough-council/sutton,London Borough of Sutton,02/05/2023,10012360,207.50, NATIONAL LEARNING ACAD,PMT FOR COURSE JC,People's Services,Equipment And Materials Purchase,A40000,
http://opendatacommunities.org/id/london-borough-council/sutton,London Borough of Sutton,27/04/2023,10012360,22.67, NANDOS CROYDON COLONNA,MW ACTIVITY,People's Services,Miscellaneous Expenses,A49000,
http://opendatacommunities.org/id/london-borough-council/sutton,London Borough of Sutton,24/05/2023,10012360,21.49, AMZNMKTPLACE,GLOVES FOR A YOUNG PERSON (81.16%),People's Services,Miscellaneous Expenses,A49000,
http://opendatacommunities.org/id/london-borough-council/sutton,London Borough of Sutton,24/05/2023,10012360,4.99, AMZNMKTPLACE,BALANCING ENTRY AMOUNT (18.84%),People's Services,Miscellaneous Expenses,A49000,
http://opendatacommunities.org/id/london-borough-council/sutton,London Borough of Sutton,18/05/2023,10012360,4.92, SAINSBURYS SUPERMA,RM ACTIVITY,People's Services,Miscellaneous Expenses,A49000,
http://opendatacommunities.org/id/london-borough-council/sutton,London Borough of Sutton,16/05/2023,10012360,8.71, KINGS COLLEGE HOSPITAL,LS ACTIVITY,People's Services,Miscellaneous Expenses,A49000,
http://opendatacommunities.org/id/london-borough-council/sutton,London Borough of Sutton,09/05/2023,10012360,7.17, COSTA COFFEE 43011869,KW ACTIVITY,People's Services,Miscellaneous Expenses,A49000,
http://opendatacommunities.org/id/london-borough-council/sutton,London Borough of Sutton,04/05/2023,10012360,35.39, WWW.PIZZAHUT.CO.UK,PIZZA CICC,People's Services,Miscellaneous Expenses,A49000,
http://opendatacommunities.org/id/london-borough-council/sutton,London Borough of Sutton,02/05/2023,10012360,7.46, MCDONALDS,MW ACTIVITY,People's Services,Miscellaneous Expenses,A49000,
http://opendatacommunities.org/id/london-borough-council/sutton,London Borough of Sutton,25/05/2023,10012360,"1,186.99", BACK CARE SOLUTIONS,WORK EQUIPMENT FOR A SOCIAL WORKER WITHIN LEAVING CARE TEAM,People's Services,Miscellaneous Expenses,A49000,
http://opendatacommunities.org/id/london-borough-council/sutton,London Borough of Sutton,28/04/2023,10012360,85.50, WWW.ARGOS.CO.UK,ARGOS KITCHEN PURCHASES,People's Services,Miscellaneous Expenses,A49000,
http://opendatacommunities.org/id/london-borough-council/sutton,London Borough of Sutton,24/05/2023,10012360,"3,320.16", BACK CARE SOLUTIONS,SPECIALIST EQUIPMENT FOR STAFF MEMBER,People's Services,Miscellaneous Expenses,A49000,
http://opendatacommunities.org/id/london-borough-council/sutton,London Borough of Sutton,23/05/2023,10012360,100.00, BKG HOTEL AT BOOKING.C,HOTEL REQUIRED FOR A YOUNG PERSON,People's Services,C.C.A Travel & Subsistance,A61010,
http://opendatacommunities.org/id/london-borough-council/sutton,London Borough of Sutton,15/05/2023,10012360,241.62, WWW.ARGOS.CO.UK,SETTING UP ALLOWANCE FOR YOUNG PERSON,People's Services,Set Up Costs - Children Leaving Care,A61021,
http://opendatacommunities.org/id/london-borough-council/sutton,London Borough of Sutton,15/05/2023,10012360,59.96, WWW.ARGOS.CO.UK,ITEMS FOR LEAVING CARE YOUNG PERSON,People's Services,Set Up Costs - Children Leaving Care,A61021,
http://opendatacommunities.org/id/london-borough-council/sutton,London Borough of Sutton,04/05/2023,10012360,52.50, Z HOTELS GLASGOW,HOTEL REQUIRED FOR A SOCIAL WORKER DOING A VISIT,People's Services,Miscellaneous Expenses,A49000,
http://opendatacommunities.org/id/london-borough-council/sutton,London Borough of Sutton,10/05/2023,10012360,149.95, GO LASER TAG LONDON,ACTIVITY FOR A FAMILY,People's Services,Miscellaneous Expenses,A49000,
http://opendatacommunities.org/id/london-borough-council/sutton,London Borough of Sutton,18/05/2023,10012360,31.99, SPORTSDIRECT,CRICKET EQUIPMENT FOR YOUNG PERSON,People's Services,C.C.A Travel & Subsistance,A61010,
http://opendatacommunities.org/id/london-borough-council/sutton,London Borough of Sutton,18/05/2023,10012360,154.95, WWW ALLROUNDERCRICKET,CRICKET EQUIPMENT FOR YOUNG PERSON,People's Services,C.C.A Travel & Subsistance,A61010,
http://opendatacommunities.org/id/london-borough-council/sutton,London Borough of Sutton,10/05/2023,10012360,239.17, LBSUTTON,BIRTH CERTS,People's Services,Equipment And Materials Purchase,A40000,
http://opendatacommunities.org/id/london-borough-council/sutton,London Borough of Sutton,05/05/2023,10012360,18.90, AMZNMKTPLACE AMAZON.CO,WILLOW RISE CHILDRENS HOME ITEMS (79.65%),People's Services,Equipment And Materials Purchase,A40000,
http://opendatacommunities.org/id/london-borough-council/sutton,London Borough of Sutton,05/05/2023,10012360,4.83, AMZNMKTPLACE AMAZON.CO,BALANCING ENTRY AMOUNT (20.35%),People's Services,Equipment And Materials Purchase,A40000,
http://opendatacommunities.org/id/london-borough-council/sutton,London Borough of Sutton,05/05/2023,10012360,-3.86, ASDA GROCERIES ONLINE,ASDA GROCERY SHOPPING FOR WILLOW RISE CHILDRENS HOME,People's Services,Miscellaneous Expenses,A49000,
http://opendatacommunities.org/id/london-borough-council/sutton,London Borough of Sutton,27/04/2023,10012360,99.64, ASDA GROCERIES ONLINE,ASDA FOOD SHOPPING FOR WILLOW RISE CHILDREN'S HOME,People's Services,Miscellaneous Expenses,A49000,
http://opendatacommunities.org/id/london-borough-council/sutton,London Borough of Sutton,18/05/2023,10012360,33.04, AMZNMKTPLACE,WILLOW RISE CHILDRENS HOME ITEMS (100%),People's Services,Miscellaneous Expenses,A49000,
http://opendatacommunities.org/id/london-borough-council/sutton,London Borough of Sutton,18/05/2023,10012360,101.33, ASDA GROCERIES ONLINE,ASDA GROCERY SHOPPING FOR WILLOW RISE CHILDRENS HOME,People's Services,Miscellaneous Expenses,A49000,
http://opendatacommunities.org/id/london-borough-council/sutton,London Borough of Sutton,18/05/2023,10012360,-5.06, ASDA GROCERIES ONLINE,ASDA GROCERY SHOPPING FOR WILLOW RISE CHILDRENS HOME,People's Services,Miscellaneous Expenses,A49000,
http://opendatacommunities.org/id/london-borough-council/sutton,London Borough of Sutton,22/05/2023,10012360,-7.69, COSTCO ONLINE UK LIMIT,REFUND FOR A COSTCO ORDER,People's Services,Miscellaneous Expenses,A49000,
http://opendatacommunities.org/id/london-borough-council/sutton,London Borough of Sutton,22/05/2023,10012360,-5.89, COSTCO ONLINE UK LIMIT,ITEMS AND GROCERY SHOPPING FOR WILLOW RISE CHILDRENS HOME REFUND,People's Services,Miscellaneous Expenses,A49000,
http://opendatacommunities.org/id/london-borough-council/sutton,London Borough of Sutton,22/05/2023,10012360,-5.89, COSTCO ONLINE UK LIMIT,REFUND FOR A COSTCO ORDER,People's Services,Miscellaneous Expenses,A49000,
http://opendatacommunities.org/id/london-borough-council/sutton,London Borough of Sutton,22/05/2023,10012360,-26.49, COSTCO ONLINE UK LIMIT,REFUND FOR A COSTCO ORDER,People's Services,Miscellaneous Expenses,A49000,
http://opendatacommunities.org/id/london-borough-council/sutton,London Borough of Sutton,22/05/2023,10012360,-7.69, COSTCO ONLINE UK LIMIT,REFUND FOR A COSTCO ORDER,People's Services,Miscellaneous Expenses,A49000,
http://opendatacommunities.org/id/london-borough-council/sutton,London Borough of Sutton,22/05/2023,10012360,-5.89, COSTCO ONLINE UK LIMIT,REFUND FOR A COSTCO ORDER,People's Services,Miscellaneous Expenses,A49000,
http://opendatacommunities.org/id/london-borough-council/sutton,London Borough of Sutton,22/05/2023,10012360,-5.89, COSTCO ONLINE UK LIMIT,REFUND FOR A COSTCO ORDER,People's Services,Miscellaneous Expenses,A49000,
http://opendatacommunities.org/id/london-borough-council/sutton,London Borough of Sutton,21/05/2023,10012360,18.74, HPI INSTANT INK UK,PRINTER INK FOR WILLOW RISE CHILDRENS HOME,People's Services,Miscellaneous Expenses,A49000,
http://opendatacommunities.org/id/london-borough-council/sutton,London Borough of Sutton,25/05/2023,10012360,119.71, ASDA GROCERIES ONLINE,ASDA SHOP PAYMENT,People's Services,Miscellaneous Expenses,A49000,
http://opendatacommunities.org/id/london-borough-council/sutton,London Borough of Sutton,25/05/2023,10012360,-0.40, ASDA GROCERIES ONLINE,ASDA SHOP PAYMENT REFUND,People's Services,Miscellaneous Expenses,A49000,
http://opendatacommunities.org/id/london-borough-council/sutton,London Borough of Sutton,23/05/2023,10012360,52.36, COSTCO ONLINE UK LIMIT,ITEMS NEEDED FOR WILLOW RISE HOME,People's Services,Miscellaneous Expenses,A49000,
http://opendatacommunities.org/id/london-borough-council/sutton,London Borough of Sutton,10/05/2023,10012360,38.00, AMZNMKTPLACE AMAZON.CO,WILLOW RISE CHILDRENS HOME ITEMS (100%),People's Services,Miscellaneous Expenses,A49000,
http://opendatacommunities.org/id/london-borough-council/sutton,London Borough of Sutton,10/05/2023,10012360,13.99, AMZNMKTPLACE AMAZON.CO,WILLOW RISE CHILDRENS HOME ITEMS (100%),People's Services,Miscellaneous Expenses,A49000,
http://opendatacommunities.org/id/london-borough-council/sutton,London Borough of Sutton,10/05/2023,10012360,8.99, AMZNMKTPLACE AMAZON.CO,WILLOW RISE CHILDRENS HOME ITEMS (100%),People's Services,Miscellaneous Expenses,A49000,
http://opendatacommunities.org/id/london-borough-council/sutton,London Borough of Sutton,10/05/2023,10012360,15.98, AMZNMKTPLACE AMAZON.CO,WILLOW RISE CHILDRENS HOME ITEMS (100%),People's Services,Miscellaneous Expenses,A49000,
http://opendatacommunities.org/id/london-borough-council/sutton,London Borough of Sutton,10/05/2023,10012360,12.48, AMZNMKTPLACE AMAZON.CO,WILLOW RISE CHILDRENS HOME ITEMS (100%),People's Services,Miscellaneous Expenses,A49000,
http://opendatacommunities.org/id/london-borough-council/sutton,London Borough of Sutton,15/05/2023,10012360,19.47, COSTCO ONLINE UK LIMIT,ITEMS AND GROCERY SHOPPING FOR WILLOW RISE CHILDRENS HOME,People's Services,Miscellaneous Expenses,A49000,
http://opendatacommunities.org/id/london-borough-council/sutton,London Borough of Sutton,15/05/2023,10012360,133.13, COSTCO ONLINE UK LIMIT,ITEMS AND GROCERY SHOPPING FOR WILLOW RISE CHILDRENS HOME,People's Services,Miscellaneous Expenses,A49000,
http://opendatacommunities.org/id/london-borough-council/sutton,London Borough of Sutton,15/05/2023,10012360,5.42, ASDA GROCERIES ONLINE,ASDA GROCERY SHOPPING FOR WILLOW RISE CHILDRENS HOME,People's Services,Miscellaneous Expenses,A49000,
http://opendatacommunities.org/id/london-borough-council/sutton,London Borough of Sutton,14/05/2023,10012360,31.99, AMZNMKTPLACE AMAZON.CO,ITEMS NEEDED FOR WILLOW RISE CHILDRENS HOME (100%),People's Services,Miscellaneous Expenses,A49000,
http://opendatacommunities.org/id/london-borough-council/sutton,London Borough of Sutton,11/05/2023,10012360,99.17, ASDA GROCERIES ONLINE,FOOD SHOPPING FOR WILLOW RISE CHILDRENS HOME,People's Services,Miscellaneous Expenses,A49000,
http://opendatacommunities.org/id/london-borough-council/sutton,London Borough of Sutton,10/05/2023,10012360,5.41, COSTCO ONLINE UK LIMIT,WILLOW RISE CHILDRENS HOME ITEMS  DELIVERY CHARGE,People's Services,Miscellaneous Expenses,A49000,
http://opendatacommunities.org/id/london-borough-council/sutton,London Borough of Sutton,10/05/2023,10012360,54.24, COSTCO ONLINE UK LIMIT,WILLOW RISE CHILDRENS HOME ITEMS,People's Services,Miscellaneous Expenses,A49000,
http://opendatacommunities.org/id/london-borough-council/sutton,London Borough of Sutton,10/05/2023,10012360,73.00, COSTCO ONLINE UK LIMIT,ITEMS AND GROCERY SHOPPING FOR WILLOW RISE CHILDRENS HOME,People's Services,Miscellaneous Expenses,A49000,
http://opendatacommunities.org/id/london-borough-council/sutton,London Borough of Sutton,05/05/2023,10012360,22.78, AMZNMKTPLACE,WILLOW RISE CHILDRENS HOME ITEMS (100%),People's Services,Miscellaneous Expenses,A49000,
http://opendatacommunities.org/id/london-borough-council/sutton,London Borough of Sutton,05/05/2023,10012360,99.87, ASDA GROCERIES ONLINE,ASDA GROCERY SHOPPING FOR WILLOW RISE CHILDRENS HOME,People's Services,Miscellaneous Expenses,A49000,
http://opendatacommunities.org/id/london-borough-council/sutton,London Borough of Sutton,05/05/2023,10012360,9.47, AMZNMKTPLACE,WILLOW RISE CHILDRENS HOME ITEMS (79.18%),People's Services,Miscellaneous Expenses,A49000,
http://opendatacommunities.org/id/london-borough-council/sutton,London Borough of Sutton,05/05/2023,10012360,2.49, AMZNMKTPLACE,BALANCING ENTRY AMOUNT (20.82%),People's Services,Miscellaneous Expenses,A49000,
http://opendatacommunities.org/id/london-borough-council/sutton,London Borough of Sutton,10/05/2023,10012360,12.50, COSTCO ONLINE UK LIMIT,WILLOW RISE CHILDRENS HOME ITEMS,People's Services,Miscellaneous Expenses,A49000,
http://opendatacommunities.org/id/london-borough-council/sutton,London Borough of Sutton,17/05/2023,10012360,15.99, NETFLIX.COM,NETFLIX PAYMENT,People's Services,Miscellaneous Expenses,A49000,
http://opendatacommunities.org/id/london-borough-council/sutton,London Borough of Sutton,12/05/2023,10012360,625.00, PREMIER INN,HOTEL PREMIER INN PAYMENT FOR CLIENT,People's Services,C.C.A Travel & Subsistance,A61010,
http://opendatacommunities.org/id/london-borough-council/sutton,London Borough of Sutton,17/05/2023,10012360,159.90, ZOOM.US 888-799-9666,SUBSCRIPTION REQUIRED FOR THE TEAM,People's Services,Subscriptions,A47010,
http://opendatacommunities.org/id/london-borough-council/sutton,London Borough of Sutton,30/04/2023,10012360,159.90, ZOOM.US 888-799-9666,SUBSCRIPTION REQUIRED FOR TEAM,People's Services,Subscriptions,A47010,
http://opendatacommunities.org/id/london-borough-council/sutton,London Borough of Sutton,28/04/2023,10012360,236.67, POST OFFICE COUNTER,PASSPORT APPLICATIONS,People's Services,Equipment And Materials Purchase,A40000,
http://opendatacommunities.org/id/london-borough-council/sutton,London Borough of Sutton,09/05/2023,10012360,41.45, TESCO STORES 5999,TESCO ORDER,People's Services,Miscellaneous Expenses,A49000,
http://opendatacommunities.org/id/london-borough-council/sutton,London Borough of Sutton,16/05/2023,10012360,150.00, WALLINGTON CARS & COUR,TAXI PAYMENT FOR CLIENT,People's Services,C.C.A Travel & Subsistance,A61010,
http://opendatacommunities.org/id/london-borough-council/sutton,London Borough of Sutton,19/05/2023,10012360,32.50, SP ARENA FLOWERS,FLOWERS AS A THANK YOU,People's Services,Equipment And Materials Purchase,A40000,
http://opendatacommunities.org/id/london-borough-council/sutton,London Borough of Sutton,19/05/2023,10012360,32.50, SP ARENA FLOWERS,FLOWERS AS A THANK YOU,People's Services,Equipment And Materials Purchase,A40000,
http://opendatacommunities.org/id/london-borough-council/sutton,London Borough of Sutton,19/05/2023,10012360,32.50, SP ARENA FLOWERS,FLOWERS AS A THANK YOU,People's Services,Equipment And Materials Purchase,A40000,
http://opendatacommunities.org/id/london-borough-council/sutton,London Borough of Sutton,10/05/2023,10012360,174.67, WWW.BIGYELLOW.CO.UK,STORAGE REQUIRED FOR A CLIENT,People's Services,C.C.A Travel & Subsistance,A61010,
http://opendatacommunities.org/id/london-borough-council/sutton,London Borough of Sutton,02/05/2023,10012360,104.03, STORAGEMART UK #5215,STORAGE REQUIRED FOR CLIENT,People's Services,Client Care/Assistance,A61011,
http://opendatacommunities.org/id/london-borough-council/sutton,London Borough of Sutton,22/05/2023,10012360,37.49, WWW.ARGOS.CO.UK,NEW CHILDRENS HOME,People's Services,Miscellaneous Expenses,A49000,
http://opendatacommunities.org/id/london-borough-council/sutton,London Borough of Sutton,22/05/2023,10012360,612.24, WWW.ARGOS.CO.UK,NEW CHILDRENS HOME,People's Services,Miscellaneous Expenses,A49000,
http://opendatacommunities.org/id/london-borough-council/sutton,London Borough of Sutton,22/05/2023,10012360,"4,028.33", IKEA LTD SHOP ONLINE,NEW CHILDRENS HOME,People's Services,Miscellaneous Expenses,A49000,
http://opendatacommunities.org/id/london-borough-council/sutton,London Borough of Sutton,22/05/2023,10012360,845.83, IKEA LTD SHOP ONLINE,NEW CHILDRENS HOME,People's Services,Miscellaneous Expenses,A49000,
http://opendatacommunities.org/id/london-borough-council/sutton,London Borough of Sutton,22/05/2023,10012360,94.96, WWW.ARGOS.CO.UK,G03270,People's Services,Miscellaneous Expenses,A49000,
http://opendatacommunities.org/id/london-borough-council/sutton,London Borough of Sutton,10/05/2023,10012360,866.67, WWW.ARGOS.CO.UK,NEW HOME FURNITURE,People's Services,Miscellaneous Expenses,A49000,
http://opendatacommunities.org/id/london-borough-council/sutton,London Borough of Sutton,18/05/2023,10012360,52.95, WWW.ARGOS.CO.UK,ARGOS ORDER,People's Services,C.C.A Travel & Subsistance,A61010,
http://opendatacommunities.org/id/london-borough-council/sutton,London Borough of Sutton,03/05/2023,10012360,59.40, ORU SPACE,BALANCING ENTRY AMOUNT (100%),People's Services,Hire of Rooms,A22010,
http://opendatacommunities.org/id/london-borough-council/sutton,London Borough of Sutton,16/05/2023,10012360,87.93, TEAM SPORT KARTING,GO KARTING PAYMENT,People's Services,C.C.A Travel & Subsistance,A61010,
http://opendatacommunities.org/id/london-borough-council/sutton,London Borough of Sutton,17/05/2023,10012360,698.25, S.C.T.S,BALANCING ENTRY AMOUNT (100%),People's Services,Staff Development And Training,A15022,
http://opendatacommunities.org/id/london-borough-council/sutton,London Borough of Sutton,17/05/2023,10012360,698.25, S.C.T.S,BALANCING ENTRY AMOUNT (100%),People's Services,Staff Development And Training,A15022,
http://opendatacommunities.org/id/london-borough-council/sutton,London Borough of Sutton,12/05/2023,10012360,99.00, OUTSOURCED EVENTS," ""REDACTED - PERSONAL DATA"" - ROYAL COLLEGE OF OCCUPATIONAL THERAPISTS CONFERENCE 14TH&15TH JUNE 2023",People's Services,Staff Development And Training,A15022,
http://opendatacommunities.org/id/london-borough-council/sutton,London Borough of Sutton,11/05/2023,10012360,3.77, MENTIMETER BASIC,MENTIMETER BASIC YEARLY RENEWAL,People's Services,Staff Development And Training,A15022,
http://opendatacommunities.org/id/london-borough-council/sutton,London Borough of Sutton,10/05/2023,10012360,137.03, MENTIMETER BASIC,BALANCING ENTRY AMOUNT (100%),People's Services,Staff Development And Training,A15022,
http://opendatacommunities.org/id/london-borough-council/sutton,London Borough of Sutton,24/05/2023,10012360,258.98, HIPPOBAG,HIPPO BAG PAYMENT,People's Services,C.C.A Travel & Subsistance,A61010,
http://opendatacommunities.org/id/london-borough-council/sutton,London Borough of Sutton,12/05/2023,10012360,14.00, GEN REGISTER OFFICE,BIRTH CERTIFICATE PAYMENT,People's Services,Equipment And Materials Purchase,A40000,
http://opendatacommunities.org/id/london-borough-council/sutton,London Borough of Sutton,26/05/2023,10012360,2.47, WWW.GROIRELAND.IE,"BIRTH CERT FROM IRELAND, EXHCNAGE FEE",People's Services,Equipment And Materials Purchase,A40000,
http://opendatacommunities.org/id/london-borough-council/sutton,London Borough of Sutton,25/05/2023,10012360,89.67, WWW.GROIRELAND.IE,BIRTH CERT FROM IRELAND,People's Services,Equipment And Materials Purchase,A40000,
http://opendatacommunities.org/id/london-borough-council/sutton,London Borough of Sutton,27/04/2023,10012360,41.67, WALLINGTON CARS & COUR,TAXI REQUIRED FOR CLIENT,People's Services,C.C.A Travel & Subsistance,A61010,
http://opendatacommunities.org/id/london-borough-council/sutton,London Borough of Sutton,09/05/2023,10012360,"3,199.00", C2E853001461Q UKVI,VISA - ADULTS SOCIAL CARE,People's Services,Disability Access Fund,A56093,
http://opendatacommunities.org/id/london-borough-council/sutton,London Borough of Sutton,07/05/2023,10012360,112.50, PREMIER INN,HOTEL REQUIRED FOR THE CLIENT,People's Services,Miscellaneous Expenses,A49000,
http://opendatacommunities.org/id/london-borough-council/sutton,London Borough of Sutton,18/05/2023,10012360,885.00, PREMIER INN,HOTEL PREMIER INN PAYMENT FOR CLIENT,People's Services,C.C.A Travel & Subsistance,A61010,
http://opendatacommunities.org/id/london-borough-council/sutton,London Borough of Sutton,05/05/2023,10012360,651.25, PREMIER INN,HOTEL REQUIRED FOR A CLIENT,People's Services,C.C.A Travel & Subsistance,A61010,
http://opendatacommunities.org/id/london-borough-council/sutton,London Borough of Sutton,10/05/2023,10012360,140.25, PREMIER INN,HOTEL REQUIRED FOR A CLIENT,People's Services,Miscellaneous Expenses,A49000,
http://opendatacommunities.org/id/london-borough-council/sutton,London Borough of Sutton,23/05/2023,10012360,215.00, EXPRESS REMOVALS,REMOVAL COMPANY PAYMENT,People's Services,C.C.A Travel & Subsistance,A61010,
http://opendatacommunities.org/id/london-borough-council/sutton,London Borough of Sutton,25/04/2023,10012360,563.00, PREMIER INN,HOTEL BOOKING,People's Services,C.C.A Travel & Subsistance,A61010,
http://opendatacommunities.org/id/london-borough-council/sutton,London Borough of Sutton,04/05/2023,10012360,603.03, EXPEDIA 72549100856052,HOTEL IBIS SUTTON PAYMENT FOR CLIENT,People's Services,C.C.A Travel & Subsistance,A61010,
http://opendatacommunities.org/id/london-borough-council/sutton,London Borough of Sutton,03/05/2023,10012360,134.83, HOLIDAY INNS,HOTEL HOLIDAY INN PAYMENT FOR CLIENT,People's Services,C.C.A Travel & Subsistance,A61010,
http://opendatacommunities.org/id/london-borough-council/sutton,London Borough of Sutton,03/05/2023,10012360,-452.50, PREMIER INN,REFUND FOR HOTEL PREMIER INN PAYMENT FOR CLIENT,People's Services,C.C.A Travel & Subsistance,A61010,
http://opendatacommunities.org/id/london-borough-council/sutton,London Borough of Sutton,02/05/2023,10012360,452.50, PREMIER INN,HOTEL PREMIER INN PAYMENT FOR CLIENT,People's Services,C.C.A Travel & Subsistance,A61010,
http://opendatacommunities.org/id/london-borough-council/sutton,London Borough of Sutton,19/05/2023,10012360,418.29, CS MORRISONS GIFT CARD,STORE VOUCHERS FOR START CLIENTS EMERGENCY FOOD SHOPPING,People's Services,Miscellaneous Expenses,A49000,
http://opendatacommunities.org/id/london-borough-council/sutton,London Borough of Sutton,18/05/2023,10012360,421.87, HIGH STREET VOUCHERS,STORE VOUCHERS FOR START CLIENTS EMERGENCY FOOD SHOPPING,People's Services,Miscellaneous Expenses,A49000,
http://opendatacommunities.org/id/london-borough-council/sutton,London Borough of Sutton,18/05/2023,10012360,422.30, ASDA STORES LTD,STORE VOUCHERS FOR START CLIENTS EMERGENCY FOOD SHOPPING,People's Services,Miscellaneous Expenses,A49000,
http://opendatacommunities.org/id/london-borough-council/sutton,London Borough of Sutton,19/05/2023,10012360,"2,475.00", WWW.LOCAL.GOV.UK,NATIONAL CHILDREN & ADULT SERVICES EXHIBITION AND CONFERENCE 2023 X 5 PLACES,People's Services,Conference Expenses,A43075,
http://opendatacommunities.org/id/london-borough-council/sutton,London Borough of Sutton,22/05/2023,10012360,9.01, WM MORRISONS STORE,MORRISONS 220523 9.01 GOVS,Health and Wellbeing,Provisions,A41006,
http://opendatacommunities.org/id/london-borough-council/sutton,London Borough of Sutton,23/05/2023,10012360,75.00, ARE YOU OWED MONEY LTD,ST JOHNS AMBULANCE DEBT COLLECTION CHARGES,Health and Wellbeing,Miscellaneous Expenses,A49000,
http://opendatacommunities.org/id/london-borough-council/sutton,London Borough of Sutton,10/05/2023,10012360,21.62, WWW.ARGOS.CO.UK,2X 12 AA DURACELL BATTERIES,Health and Wellbeing,Equipment And Materials Purchase,A40000,
http://opendatacommunities.org/id/london-borough-council/sutton,London Borough of Sutton,23/05/2023,10012360,53.75, CARTRIDGEPEOPLE.COM,COMPATIBLE BROTHER DK22251 RED BLACK ON WHITE CONTINUOUS LABEL TAPE,Health and Wellbeing,Printing,A43010,
http://opendatacommunities.org/id/london-borough-council/sutton,London Borough of Sutton,04/05/2023,10012360,525.00, WWW.PB.COM,IT PAPER,Health and Wellbeing,Stationery,A43015,
http://opendatacommunities.org/id/london-borough-council/sutton,London Borough of Sutton,04/05/2023,10012360,525.00, WWW.PB.COM,PAPER IT,Health and Wellbeing,Stationery,A43015,
http://opendatacommunities.org/id/london-borough-council/sutton,London Borough of Sutton,04/05/2023,10012360,81.00, AUTHSMTP,IT RENEWAL OF AUTHSMTP ACCOUNT,Health and Wellbeing,Subscriptions,A47010,
http://opendatacommunities.org/id/london-borough-council/sutton,London Borough of Sutton,01/05/2023,10012360,69.75, GSUITE_SUTTONCOLLEGE.A,GOOGLE CLOUD EMEA LIMITED 4713312860,Health and Wellbeing,Subscriptions,A47010,
http://opendatacommunities.org/id/london-borough-council/sutton,London Borough of Sutton,27/04/2023,10012360,12.50, WILKO RETAIL LIMITED,WILKINSONS CORONATION THINGS 270423 15.00,Health and Wellbeing,Equipment And Materials Purchase,A40000,
http://opendatacommunities.org/id/london-borough-council/sutton,London Borough of Sutton,15/05/2023,10012360,65.47, WWW.INSTANTPRINT.C,INSTANTPRINT A1 POSTERS 150523 78.57,Health and Wellbeing,Publicity,A44266,
http://opendatacommunities.org/id/london-borough-council/sutton,London Borough of Sutton,03/05/2023,10012360,"2,073.25", INSTANTPRINT.CO.UK,INSTANTPRINT 030523 2324 COURSE GUIDES POSTERS ETC 2487.90,Health and Wellbeing,Publicity,A44266,
http://opendatacommunities.org/id/london-borough-council/sutton,London Borough of Sutton,07/05/2023,10012360,47.99, ADOBE STOCK,ADOBE 070523 47.99,Health and Wellbeing,Publicity,A44266,
http://opendatacommunities.org/id/london-borough-council/sutton,London Borough of Sutton,30/04/2023,10012360,92.87, MAILCHIMP,MAILCHIMP 030423 111.45,Health and Wellbeing,Publicity,A44266,
http://opendatacommunities.org/id/london-borough-council/sutton,London Borough of Sutton,02/05/2023,10012360,3.30, TESCO PFS 2259,TESCO MILK REED 020523 3.30,Health and Wellbeing,Equipment And Materials Purchase,A40000,
http://opendatacommunities.org/id/london-borough-council/sutton,London Borough of Sutton,16/05/2023,10012360,1.25, WM MORRISONS STORE,MORRISONS MILK REED 160523 1.25,Health and Wellbeing,Equipment And Materials Purchase,A40000,
http://opendatacommunities.org/id/london-borough-council/sutton,London Borough of Sutton,15/05/2023,10012360,62.20, BPP LEARNING MEDIA LTD,INTRODUCTION TO BOOK-KEEPING BOOKS,Health and Wellbeing,Books,A43050,
http://opendatacommunities.org/id/london-borough-council/sutton,London Borough of Sutton,09/05/2023,10012360,1.55, WM MORRISONS STORE,WOODWORK REED CLASS MILK 090523 1.55,Health and Wellbeing,Equipment And Materials Purchase,A40000,
http://opendatacommunities.org/id/london-borough-council/sutton,London Borough of Sutton,27/04/2023,10012360,3.04, WM MORRISONS STORE,WOODWORK REED CLASS MILK 270423 3.04,Health and Wellbeing,Equipment And Materials Purchase,A40000,
http://opendatacommunities.org/id/london-borough-council/sutton,London Borough of Sutton,17/05/2023,10012360,602.12, E POLLARD AND SONS LIM,E POLLARD FLOWERS,Health and Wellbeing,Equipment And Materials Purchase,A40000,
http://opendatacommunities.org/id/london-borough-council/sutton,London Borough of Sutton,26/04/2023,10012360,5.82, AMZNMKTPLACE,SELF-INKING TEACHER STAMP,Health and Wellbeing,Equipment And Materials Purchase,A40000,
http://opendatacommunities.org/id/london-borough-council/sutton,London Borough of Sutton,25/05/2023,10012360,200.00, AMAZON.CO.UK 6I6ID7RL5,SPLIT - APPLE GIFT CARD (2) - UK - EMAIL DELIVERY (100%),People's Services,LAC - Education,A44280,
http://opendatacommunities.org/id/london-borough-council/sutton,London Borough of Sutton,17/05/2023,10012360,6.50, AMZNBUSINESS SG0KU2K95,"SPLIT - GCSE MATHS EDEXCEL REVISION GUIDE: FOUNDATION INC ONLINE EDITION, VIDEOS & QUIZZES: IDEAL FOR THE 2023 AND 2024 EXAMS (100%)",People's Services,LAC - Education,A44280,
http://opendatacommunities.org/id/london-borough-council/sutton,London Borough of Sutton,17/05/2023,10012360,5.95, AMZNBUSINESS A67UY5CP5,SPLIT - GCSE MATHS EDEXCEL EXAM PRACTICE WORKBOOK: FOUNDATION - FOR THE GRADE 9-1 COURSE (WITH ANSWERS): IDEAL FOR THE 2023 AND 2024 EXAMS (100%),People's Services,LAC - Education,A44280,
http://opendatacommunities.org/id/london-borough-council/sutton,London Borough of Sutton,16/05/2023,10012360,208.32, AMZNBUSINESS 9A92X8AD5,"SPLIT - LENOVO IDEAPAD 3 15 INCH FULL HD LAPTOP - (INTEL CORE I3-1115G4, INTEGRATED INTEL UHD GRAPHICS, 4GB RAM, 128GB SSD, WINDOWS 11 HOME IN S MODE) - ABYSS (100%)",People's Services,LAC - Education,A44280,
http://opendatacommunities.org/id/london-borough-council/sutton,London Borough of Sutton,15/05/2023,10012360,-224.99, AMZ AMAZON.CO.UK,"SPLIT - LENOVO IDEAPAD 3 15 INCH FULL HD LAPTOP - (INTEL CORE I3-1115G4, INTEGRATED INTEL UHD GRAPHICS, 4GB RAM, 128GB SSD, WINDOWS 11 HOME IN S MODE) - ABYSS (100%)",People's Services,LAC - Education,A44280,
http://opendatacommunities.org/id/london-borough-council/sutton,London Borough of Sutton,11/05/2023,10012360,14.99, AMZNMKTPLACE,"SPLIT - BLACK, LISTED: BLACK BRITISH CULTURE EXPLORED (100%)",People's Services,LAC - Education,A44280,
http://opendatacommunities.org/id/london-borough-council/sutton,London Borough of Sutton,11/05/2023,10012360,7.51, AMZNMKTPLACE,SPLIT - MIXED/OTHER: EXPLORATIONS OF MULTIRACIALITY IN MODERN BRITAIN (100%),People's Services,LAC - Education,A44280,
http://opendatacommunities.org/id/london-borough-council/sutton,London Borough of Sutton,11/05/2023,10012360,400.00, AMAZON.CO.UK TF29Y66G5,SPLIT - APPLE GIFT CARD - UK - EMAIL DELIVERY (100%),People's Services,LAC - Education,A44280,
http://opendatacommunities.org/id/london-borough-council/sutton,London Borough of Sutton,10/05/2023,10012360,11.48, AMZNBUSINESS RX8LZ0D95,SPLIT - F2: ULTIMATE FOOTBALLER: BECOME THE PERFECT FOOTBALLER WITH THE F2'S NEW BOOK!: (SKILLS BOOK 4) (100%),People's Services,LAC - Education,A44280,
http://opendatacommunities.org/id/london-borough-council/sutton,London Borough of Sutton,05/05/2023,10012360,102.07, VISTAPRINT,PRINT OF PRESENTATION FOLDERS,People's Services,LAC - Education,A44280,
http://opendatacommunities.org/id/london-borough-council/sutton,London Borough of Sutton,30/04/2023,10012360,4.99, AMZNBUSINESS 8K1DC5BB5,SPLIT - MY BIG PRESCHOOL MATH WORKBOOK FOR KIDS AGES 3-5: BEGINNER MATH PRESCHOOL TODDLERS LEARNING MATH WITH NUMBER TRACING PAGES | TODDLER LEARNING ACTIVITI (32.05%),People's Services,LAC - Education,A44280,
http://opendatacommunities.org/id/london-borough-council/sutton,London Borough of Sutton,30/04/2023,10012360,4.59, AMZNBUSINESS 8K1DC5BB5,"SPLIT - TRACING BOOK FOR 3-5 YEAR OLDS: FIRST LEARN TO WRITE WORKBOOK FOR KIDS. LINES, CURVES, SHAPES, NUMBERS, LETTERS, COLOURING, AND MANY MORE! (29.48%)",People's Services,LAC - Education,A44280,
http://opendatacommunities.org/id/london-borough-council/sutton,London Borough of Sutton,30/04/2023,10012360,5.99, AMZNBUSINESS 8K1DC5BB5,"SPLIT - PHONICS BOOK FOR 4-5 YEAR OLDS: BUMPER PHONICS ACTIVITY BOOK FOR RECEPTION - EYFS - KS1 | PRACTICE LETTERS, SOUNDS, WORDS, TRACING AND HANDWRITING: .. (38.47%)",People's Services,LAC - Education,A44280,
http://opendatacommunities.org/id/london-borough-council/sutton,London Borough of Sutton,28/04/2023,10012360,25.20, AMZNMKTPLACE,SPLIT - LONGMAN PHOTO DICTIONARY (100%),People's Services,LAC - Education,A44280,
http://opendatacommunities.org/id/london-borough-council/sutton,London Borough of Sutton,28/04/2023,10012360,4.99, AMZNMKTPLACE,SPLIT - HANDWRITING TODAY: BK. 1 (HANDWRITING TODAY) (100%),People's Services,LAC - Education,A44280,
http://opendatacommunities.org/id/london-borough-council/sutton,London Borough of Sutton,28/04/2023,10012360,19.57, AMZNMKTPLACE,SPLIT - LITTLE BUD KIDS SPIN-AND-READ PHONICS WOODEN READING BLOCKS | A LEARNING RESOURCE & MONTESSORI WOODEN TOY FOR 3 4 5 6 YEAR OLDS (100%),People's Services,LAC - Education,A44280,
http://opendatacommunities.org/id/london-borough-council/sutton,London Borough of Sutton,27/04/2023,10012360,5.72, AMZNBUSINESS X92SO5AE5,"SPLIT - ORCHARD TOYS MATCH AND SPELL GAME FOR SIGHT WORDS, READING & LITERACY SKILLS, EDUCATIONAL BOARD GAMES FOR KIDS, SPELLING WORD GAMES WITH FLASH CARDS, (100%)",People's Services,LAC - Education,A44280,
http://opendatacommunities.org/id/london-borough-council/sutton,London Borough of Sutton,27/04/2023,10012360,4.62, AMZNBUSINESS CK8YZ27N5,SPLIT - LOWER CASE LETTERS AGE 3-5 WIPE CLEAN ACTIVITY BOOK: IDEAL FOR HOME LEARNING (COLLINS EASY LEARNING PRESCHOOL) (100%),People's Services,LAC - Education,A44280,
http://opendatacommunities.org/id/london-borough-council/sutton,London Borough of Sutton,26/04/2023,10012360,400.00, AMAZON.CO.UK 9K4QB1S65,SPLIT - EMAIL- FROM ALL OF US - AMAZON.CO.UK EGIFT CARD (100%),People's Services,LAC - Education,A44280,
